[Event "EYCC Girls-U10 2019"]
[Site "Bratislava"]
[Date "2019.08.02"]
[Round "1.10"]
[White "Mihaeli, Shira"]
[Black "Bagas, Ana"]
[Result "0-1"]
[ECO "C00"]
[WhiteElo "1172"]
[BlackElo "1442"]
[Annotator "NA"]
[PlyCount "102"]
[EventDate "2019.08.02"]
[EventType "swiss"]
[EventCountry "SVK"]
[SourceTitle "playchess.com"]
[Source "ChessBase"]
[SourceQuality "1"]
[TimeControl "40/5400+30:1800+30"]

1. e4 {[%emt 0:00:00]} e6 {[%emt 0:00:00]} 2. d4 {[%emt 0:00:16]} d5 {[%emt 0:00:00]} 3. Bd3 {[%emt 0:00:45]} Nc6 {[%emt 0:00:30]} 4. Nf3 {[%emt 0:01:30]} Nge7 {[%emt 0:01:18]} 5. Bf4 {[%emt 0:02:45]} Ng6 {[%emt 0:01:05]} 6. Bg3 {[%emt 0:01:14]} Be7 {[%emt 0:01:11]} 7. Qe2 {[%emt 0:05:08]} O-O {[%emt 0:03:42]} 8. O-O {[%emt 0:00:56]} dxe4 {[%emt 0:01:19]} 9. Qxe4 {[%emt 0:01:09]} f5 {[%emt 0:00:32]} 10. Qe2 {[%emt 0:03:13]} f4 {[%emt 0:00:38]} 11. Bxg6 {[%emt 0:00:29]} hxg6 {[%emt 0:00:09]} 12. d5 {[%emt 0:04:05]} exd5 13. Ne5 {[%emt 0:01:52]} Nxe5 {[%emt 0:02:55]} 14. Bxf4 {[%emt 0:01:17]} Rxf4 {[%emt 0:01:12]} 15. Qxe5 {[%emt 0:00:32]} Rf5 {[%emt 0:04:04]} 16. Qd4 {[%emt 0:01:38]} Bf6 {[%emt 0:00:40]} 17. Qb4 {[%emt 0:01:35]} Qd6 {[%emt 0:00:42]} 18. Qb5 {[%emt 0:01:18]} Qc6 {[%emt 0:02:16]} 19. Qb3 {[%emt 0:03:53]} Qb6 {[%emt 0:01:06]} 20. Qxb6 {[%emt 0:02:11]} axb6 {[%emt 0:00:09]} 21. c3 {[%emt 0:00:39]} d4 {[%emt 0:01:00]} 22. cxd4 {[%emt 0:02:09]} Bxd4 {[%emt 0:00:21]} 23. a3 {[%emt 0:00:39]} Bxb2 {[%emt 0:00:36]} 24. Ra2 {[%emt 0:00:38]} Rb5 {[%emt 0:01:09]} 25. Nd2 {[%emt 0:01:50]} Be6 {[%emt 0:00:19]} 26. a4 {[%emt 0:00:58]} Rb4 {[%emt 0:00:24]} 27. Rxb2 {[%emt 0:01:29]} Rxb2 {[%emt 0:00:07]} 28. Nf3 {[%emt 0:00:55]} Rxa4 {[%emt 0:00:53]} 29. Ng5 {[%emt 0:00:11]} Bd5 {[%emt 0:01:20]} 30. Rd1 {[%emt 0:01:46]} Rab4 {[%emt 0:01:38]} 31. h3 {[%emt 0:00:45]} Rb1 {[%emt 0:00:08]} 32. Rxb1 {[%emt 0:00:57]} Rxb1+ {[%emt 0:00:06]} 33. Kh2 {[%emt 0:00:58]} c5 {[%emt 0:00:22]} 34. h4 {[%emt 0:02:19]} c4 {[%emt 0:00:12]} 35. Nh3 {[%emt 0:00:09]} c3 {[%emt 0:00:19]} 36. Nf4 {[%emt 0:00:48]} c2 {[%emt 0:00:30]} 37. Ne2 {[%emt 0:00:16]} Bc4 {[%emt 0:00:12]} 38. Nc3 {[%emt 0:01:02]} c1=Q {[%emt 0:00:38]} 39. Nxb1 {[%emt 0:00:19]} Qxb1 {[%emt 0:00:07]} 40. h5 {[%emt 0:00:00]} gxh5 {[%emt 0:00:00]} 41. g4 {[%emt 0:00:41]} Qc2 {[%emt 0:00:47]} 42. Kg3 {[%emt 0:01:08]} hxg4 {[%emt 0:00:12]} 43. f3 {[%emt 0:01:32]} gxf3 {[%emt 0:00:31]} 44. Kxf3 {[%emt 0:01:16]} Qe2+ {[%emt 0:00:10]} 45. Kg3 {[%emt 0:02:04]} b5 {[%emt 0:00:16]} 46. Kf4 {[%emt 0:00:25]} b4 {[%emt 0:00:17]} 47. Kg3 {[%emt 0:00:31]} b3 {[%emt 0:00:07]} 48. Kf4 {[%emt 0:00:17]} b2 {[%emt 0:00:08]} 49. Kg3 {[%emt 0:00:40]} b1=Q {[%emt 0:00:10]} 50. Kh3 {[%emt 0:00:35]} Qg1 {[%emt 0:00:14]} 51. Kh4 {[%emt 0:00:39]} Qeh2# {[%emt 0:00:40]} 0-1

[Event "EYCC Girls-U10 2019"]
[Site "Bratislava"]
[Date "2019.08.03"]
[Round "2.1"]
[White "Zavivaeva, Evelina"]
[Black "Shukhman, Anna"]
[Result "1/2-1/2"]
[ECO "B40"]
[WhiteElo "1302"]
[BlackElo "1806"]
[Annotator "NA"]
[PlyCount "152"]
[EventDate "2019.08.02"]
[EventType "swiss"]
[EventCountry "SVK"]
[SourceTitle "playchess.com"]
[Source "ChessBase"]
[SourceQuality "1"]
[TimeControl "40/5400+30:1800+30"]

1. e4 {[%emt 0:00:00]} c5 {[%emt 0:00:00]} 2. Nf3 {[%emt 0:00:00]} e6 {[%emt 0:00:00]} 3. c3 {[%emt 0:00:05]} d5 {[%emt 0:00:00]} 4. exd5 {[%emt 0:00:11]} exd5 {[%emt 0:00:00]} 5. d4 {[%emt 0:00:21]} Nf6 {[%emt 0:00:09]} 6. Bb5+ {[%emt 0:00:10]} Nc6 {[%emt 0:00:17]} 7. O-O {[%emt 0:00:21]} Bd6 {[%emt 0:00:08]} 8. dxc5 {[%emt 0:00:16]} Bxc5 {[%emt 0:00:04]} 9. Re1+ {[%emt 0:00:48]} Be6 {[%emt 0:00:05]} 10. Nbd2 {[%emt 0:01:36]} O-O {[%emt 0:01:40]} 11. Nb3 {[%emt 0:00:23]} Bd6 {[%emt 0:01:19]} 12. Bg5 {[%emt 0:01:52]} Be7 {[%emt 0:06:13]} 13. Nbd4 {[%emt 0:03:30]} Nxd4 {[%emt 0:00:59]} 14. Nxd4 {[%emt 0:03:19]} Qd6 {[%emt 0:04:15]} 15. Bh4 {[%emt 0:04:15]} a6 {[%emt 0:03:29]} 16. Bd3 {[%emt 0:03:18]} Rae8 {[%emt 0:01:55]} 17. Bf5 {[%emt 0:04:30]} Bd8 {[%emt 0:01:32]} 18. Bxf6 {[%emt 0:15:13]} Bxf6 {[%emt 0:00:19]} 19. Bc2 {[%emt 0:03:54]} Bd7 {[%emt 0:04:46]} 20. Qd2 {[%emt 0:01:41]} Be5 {[%emt 0:02:11]} 21. Nf3 {[%emt 0:01:11]} Bf4 {[%emt 0:01:10]} 22. Qd3 {[%emt 0:01:47]} g6 {[%emt 0:01:03]} 23. Bb3 {[%emt 0:04:02]} Bc6 {[%emt 0:04:01]} 24. Rad1 {[%emt 0:01:44]} Rd8 {[%emt 0:02:51]} 25. g3 {[%emt 0:02:11]} Bh6 {[%emt 0:00:33]} 26. c4 {[%emt 0:04:30]} d4 {[%emt 0:04:45]} 27. Qxd4 {[%emt 0:04:17]} Qb4 {[%emt 0:01:00]} 28. Qf6 {[%emt 0:09:32]} Bg7 {[%emt 0:02:46]} 29. Qf4 Rde8 30. Rxe8 {[%emt 0:04:23]} Rxe8 {[%emt 0:00:37]} 31. Qd2 {[%emt 0:05:30]} Qb6 {[%emt 0:14:15]} 32. Qf4 {[%emt 0:03:21]} Qa5 {[%emt 0:16:43]} 33. c5 {[%emt 0:05:37]} Re7 {[%emt 0:01:58]} 34. Qd6 {[%emt 0:02:06]} Bf8 {[%emt 0:00:32]} 35. Ne5 {[%emt 0:02:24]} Be8 {[%emt 0:10:23]} 36. Kg2 {[%emt 0:04:56]} Qb4 {[%emt 0:05:25]} 37. Rd4 {[%emt 0:01:00]} Qe1 {[%emt 0:00:28]} 38. Nf3 {[%emt 0:00:23]} Qb1 {[%emt 0:01:50]} 39. Rb4 {[%emt 0:02:13]} Bc6 {[%emt 0:01:01]} 40. Qf6 {[%emt 0:01:52]} Qe1 {[%emt 0:03:15]} 41. Rf4 {[%emt 0:00:34]} Bg7 {[%emt 0:14:04]} 42. Qxc6 {[%emt 0:01:20]} bxc6 {[%emt 0:00:46]} 43. Nxe1 {[%emt 0:00:16]} Rxe1 {[%emt 0:00:30]} 44. Bxf7+ {[%emt 0:00:03]} Kh8 {[%emt 0:00:17]} 45. b4 {[%emt 0:00:40]} Bc3 {[%emt 0:02:44]} 46. Bb3 {[%emt 0:02:29]} a5 {[%emt 0:05:15]} 47. bxa5 {[%emt 0:01:16]} Bxa5 {[%emt 0:00:05]} 48. Ra4 {[%emt 0:00:43]} Bd2 {[%emt 0:00:28]} 49. Ra6 {[%emt 0:00:36]} Bb4 {[%emt 0:00:53]} 50. Rxc6 {[%emt 0:00:12]} Re5 {[%emt 0:00:29]} 51. Rc8+ {[%emt 0:00:24]} Kg7 {[%emt 0:00:02]} 52. c6 {[%emt 0:00:21]} Rc5 {[%emt 0:00:45]} 53. Be6 {[%emt 0:05:46]} Ba5 {[%emt 0:00:42]} 54. Bd7 {[%emt 0:00:42]} Rc2 {[%emt 0:00:31]} 55. Kf1 {[%emt 0:03:41]} Bb6 {[%emt 0:00:41]} 56. Ke1 {[%emt 0:02:15]} Rxa2 {[%emt 0:00:47]} 57. Rb8 {[%emt 0:01:23]} Ba5+ {[%emt 0:00:49]} 58. Kf1 {[%emt 0:00:34]} Rc2 {[%emt 0:00:27]} 59. h4 {[%emt 0:03:23]} Kf6 {[%emt 0:00:52]} 60. Rh8 Kg7 61. Re8 {[%emt 0:00:53]} Bb6 {[%emt 0:01:19]} 62. Re2 Rc1+ 63. Kg2 {[%emt 0:01:02]} Rc3 {[%emt 0:01:45]} 64. Rb2 {[%emt 0:00:44]} Ba5 {[%emt 0:00:30]} 65. Re2 {[%emt 0:00:49]} Kf6 {[%emt 0:01:01]} 66. Re6+ {[%emt 0:00:00]} Kf7 {[%emt 0:00:22]} 67. Re3 Rxe3 {[%emt 0:04:50]} 68. fxe3 {[%emt 0:00:36]} Kf6 {[%emt 0:00:13]} 69. Kf3 Bc7 70. Kg4 {[%emt 0:03:37]} h6 {[%emt 0:00:47]} 71. e4 {[%emt 0:01:22]} Bd6 72. h5 {[%emt 0:02:10]} gxh5+ {[%emt 0:01:36]} 73. Kxh5 {[%emt 0:00:19]} Bxg3 {[%emt 0:00:10]} 74. Kxh6 {[%emt 0:00:19]} Bc7 {[%emt 0:00:07]} 75. Bf5 {[%emt 0:00:36]} Ke5 {[%emt 0:00:20]} 76. Kg6 {[%emt 0:00:40]} Kd6 {[%emt 0:00:19]} 1/2-1/2

[Event "EYCC Girls-U10 2019"]
[Site "Bratislava"]
[Date "2019.08.03"]
[Round "2.2"]
[White "Stoll, Lucia"]
[Black "Salmina, Veronika"]
[Result "1-0"]
[ECO "B30"]
[WhiteElo "1403"]
[BlackElo "1335"]
[Annotator "NA"]
[PlyCount "115"]
[EventDate "2019.08.02"]
[EventType "swiss"]
[EventCountry "SVK"]
[SourceTitle "playchess.com"]
[Source "ChessBase"]
[SourceQuality "1"]
[TimeControl "40/5400+30:1800+30"]

1. e4 {[%emt 0:00:00]} c5 2. Nf3 {[%emt 0:00:00]} Nc6 {[%emt 0:00:27]} 3. Bb5 {[%emt 0:00:00]} e6 {[%emt 0:00:35]} 4. c3 {[%emt 0:00:47]} Nge7 {[%emt 0:01:05]} 5. O-O {[%emt 0:00:37]} a6 {[%emt 0:00:23]} 6. Ba4 {[%emt 0:00:13]} b5 {[%emt 0:02:29]} 7. Bc2 {[%emt 0:00:08]} Bb7 {[%emt 0:02:14]} 8. d4 {[%emt 0:00:44]} cxd4 {[%emt 0:02:15]} 9. cxd4 {[%emt 0:00:09]} d5 {[%emt 0:01:56]} 10. e5 {[%emt 0:00:47]} Rc8 {[%emt 0:02:33]} 11. Nbd2 {[%emt 0:01:49]} Qc7 {[%emt 0:03:03]} 12. Nb3 {[%emt 0:01:29]} Nxe5 13. Nc5 Nxf3+ {[%emt 0:03:59]} 14. Qxf3 {[%emt 0:04:21]} Nc6 15. Nb3 {[%emt 0:05:47]} Bd6 {[%emt 0:04:09]} 16. h3 {[%emt 0:06:52]} a5 17. Be3 a4 {[%emt 0:04:45]} 18. Nd2 {[%emt 0:01:07]} Nxd4 {[%emt 0:02:40]} 19. Bxd4 {[%emt 0:00:46]} Qxc2 {[%emt 0:00:47]} 20. Bxg7 {[%emt 0:01:04]} Rg8 {[%emt 0:02:11]} 21. Bc3 {[%emt 0:01:24]} b4 {[%emt 0:03:26]} 22. Rac1 {[%emt 0:01:04]} Qg6 {[%emt 0:01:23]} 23. Bd4 {[%emt 0:03:01]} Kd7 {[%emt 0:05:39]} 24. g3 {[%emt 0:04:11]} f5 {[%emt 0:05:21]} 25. Be3 {[%emt 0:07:07]} Bc6 {[%emt 0:02:11]} 26. Rfe1 {[%emt 0:08:59]} d4 {[%emt 0:03:17]} 27. Rxc6 {[%emt 0:00:13]} Rxc6 {[%emt 0:01:21]} 28. Bxd4 {[%emt 0:00:35]} h5 {[%emt 0:01:09]} 29. Qd3 {[%emt 0:01:42]} Kc7 {[%emt 0:06:57]} 30. Nc4 {[%emt 0:03:39]} f4 {[%emt 0:05:40]} 31. Qxg6 {[%emt 0:09:26]} Rxg6 {[%emt 0:00:39]} 32. Ne5 {[%emt 0:01:28]} Bxe5 {[%emt 0:00:19]} 33. Bxe5+ {[%emt 0:00:01]} Kb6 {[%emt 0:00:24]} 34. Bxf4 {[%emt 0:00:40]} Rc2 {[%emt 0:01:08]} 35. Be5 {[%emt 0:01:51]} a3 {[%emt 0:01:10]} 36. bxa3 {[%emt 0:01:01]} bxa3 {[%emt 0:00:26]} 37. Re3 {[%emt 0:03:30]} Rxa2 {[%emt 0:01:02]} 38. Bd6 {[%emt 0:00:22]} Rf6 {[%emt 0:00:56]} 39. f4 {[%emt 0:03:19]} Ra1+ {[%emt 0:02:18]} 40. Kf2 {[%emt 0:00:00]} Ra2+ {[%emt 0:00:00]} 41. Kg1 {[%emt 0:02:41]} Kc6 {[%emt 0:03:40]} 42. Bxa3 {[%emt 0:01:02]} Kb5 {[%emt 0:01:35]} 43. Re5+ {[%emt 0:01:18]} Kc4 {[%emt 0:00:51]} 44. Be7 {[%emt 0:00:21]} Rg6 {[%emt 0:00:17]} 45. Rg5 {[%emt 0:01:22]} Rxg5 {[%emt 0:00:45]} 46. fxg5 {[%emt 0:01:07]} e5 {[%emt 0:01:33]} 47. g6 {[%emt 0:00:32]} Ra6 {[%emt 0:00:48]} 48. g7 {[%emt 0:00:57]} Rg6 {[%emt 0:01:07]} 49. Bf6 {[%emt 0:00:42]} e4 {[%emt 0:00:16]} 50. Be5 {[%emt 0:01:42]} Kd3 {[%emt 0:00:23]} 51. Kf2 {[%emt 0:00:47]} Kd2 {[%emt 0:01:05]} 52. Bf4+ {[%emt 0:00:21]} Kd1 {[%emt 0:00:35]} 53. Bh6 {[%emt 0:00:32]} Rf6+ {[%emt 0:05:37]} 54. Ke3 {[%emt 0:00:36]} Rf3+ {[%emt 0:00:17]} 55. Kxe4 {[%emt 0:00:15]} Rxg3 {[%emt 0:00:14]} 56. Kf5 {[%emt 0:00:28]} Ke2 {[%emt 0:00:14]} 57. Bg5 {[%emt 0:00:28]} Rf3+ {[%emt 0:00:39]} 58. Kg6 1-0

[Event "EYCC Girls-U10 2019"]
[Site "Bratislava"]
[Date "2019.08.03"]
[Round "2.3"]
[White "Haasova, Timea"]
[Black "Smietanska, Wiktoria"]
[Result "0-1"]
[ECO "A04"]
[WhiteElo "1287"]
[BlackElo "1547"]
[Annotator "NA"]
[PlyCount "102"]
[EventDate "2019.08.02"]
[EventType "swiss"]
[EventCountry "SVK"]
[SourceTitle "playchess.com"]
[Source "ChessBase"]
[SourceQuality "1"]
[TimeControl "40/5400+30:1800+30"]

1. Nf3 {[%emt 0:00:00]} c5 {[%emt 0:00:00]} 2. e3 {[%emt 0:05:29]} Nf6 {[%emt 0:02:34]} 3. d4 {[%emt 0:04:54]} cxd4 {[%emt 0:02:00]} 4. exd4 {[%emt 0:01:23]} d5 {[%emt 0:02:46]} 5. Bd3 {[%emt 0:05:13]} Bg4 {[%emt 0:01:49]} 6. h3 {[%emt 0:02:00]} Bh5 {[%emt 0:02:25]} 7. O-O {[%emt 0:04:36]} e6 {[%emt 0:03:41]} 8. Bf4 {[%emt 0:07:02]} Bd6 {[%emt 0:04:53]} 9. Bxd6 {[%emt 0:02:01]} Qxd6 {[%emt 0:00:12]} 10. Nbd2 {[%emt 0:04:11]} O-O {[%emt 0:03:20]} 11. c3 {[%emt 0:02:53]} Nbd7 {[%emt 0:03:33]} 12. Qc2 {[%emt 0:02:36]} Bxf3 {[%emt 0:03:13]} 13. Nxf3 {[%emt 0:01:01]} Rfc8 {[%emt 0:03:00]} 14. Rac1 {[%emt 0:07:32]} a6 {[%emt 0:01:26]} 15. Rfe1 {[%emt 0:02:05]} b5 {[%emt 0:03:00]} 16. a3 {[%emt 0:00:47]} Rab8 {[%emt 0:02:50]} 17. Qd2 {[%emt 0:02:46]} a5 {[%emt 0:06:53]} 18. Ne5 {[%emt 0:09:26]} Rc7 {[%emt 0:10:21]} 19. Nxd7 {[%emt 0:03:07]} Qxd7 {[%emt 0:01:01]} 20. Rc2 {[%emt 0:02:35]} Rcb7 {[%emt 0:02:56]} 21. Qc1 {[%emt 0:02:53]} Qd6 {[%emt 0:02:30]} 22. Kh1 {[%emt 0:05:15]} Nh5 {[%emt 0:03:47]} 23. Re5 {[%emt 0:04:15]} Nf6 {[%emt 0:03:08]} 24. Qg5 {[%emt 0:03:08]} b4 {[%emt 0:08:03]} 25. cxb4 {[%emt 0:03:21]} axb4 {[%emt 0:00:20]} 26. a4 {[%emt 0:03:25]} h6 {[%emt 0:03:04]} 27. Qc1 {[%emt 0:01:52]} Rd8 {[%emt 0:05:37]} 28. b3 {[%emt 0:01:16]} Qb6 {[%emt 0:01:13]} 29. Qf4 {[%emt 0:02:09]} Rc7 {[%emt 0:02:57]} 30. Rxc7 {[%emt 0:00:46]} Qxc7 {[%emt 0:00:06]} 31. Qd2 {[%emt 0:00:53]} Qb6 {[%emt 0:03:17]} 32. Qb2 {[%emt 0:01:01]} Rc8 {[%emt 0:00:27]} 33. Re2 {[%emt 0:00:39]} Rc3 {[%emt 0:00:42]} 34. Bb1 {[%emt 0:00:33]} Qxd4 {[%emt 0:00:40]} 35. Rc2 {[%emt 0:00:41]} Ne4 {[%emt 0:01:32]} 36. f3 {[%emt 0:01:16]} Ng3+ {[%emt 0:01:13]} 37. Kh2 {[%emt 0:00:32]} Nf1+ {[%emt 0:01:18]} 38. Kh1 {[%emt 0:00:33]} Qe5 {[%emt 0:02:16]} 39. Kg1 {[%emt 0:00:38]} Ne3 {[%emt 0:01:31]} 40. Rxc3 {[%emt 0:00:00]} bxc3 {[%emt 0:00:00]} 41. Qe2 {[%emt 0:02:49]} Qd4 {[%emt 0:01:15]} 42. Kh2 {[%emt 0:02:37]} Qd2 {[%emt 0:00:45]} 43. Bd3 {[%emt 0:04:10]} Qxe2 {[%emt 0:00:37]} 44. Bxe2 {[%emt 0:00:08]} c2 {[%emt 0:00:03]} 45. a5 {[%emt 0:00:11]} c1=Q {[%emt 0:00:12]} 46. a6 {[%emt 0:00:05]} Qa3 {[%emt 0:00:11]} 47. Kg3 {[%emt 0:00:37]} e5 {[%emt 0:00:19]} 48. Bb5 {[%emt 0:00:50]} Qa2 {[%emt 0:00:53]} 49. Kh4 {[%emt 0:00:31]} Qxg2 {[%emt 0:00:12]} 50. f4 {[%emt 0:00:37]} Nf5+ {[%emt 0:00:12]} 51. Kh5 {[%emt 0:00:14]} g6# {[%emt 0:00:06]} 0-1

[Event "EYCC Girls-U10 2019"]
[Site "Bratislava"]
[Date "2019.08.03"]
[Round "2.4"]
[White "Fedorova, Olesya"]
[Black "Trunz, Tamila"]
[Result "1-0"]
[ECO "C64"]
[WhiteElo "1516"]
[BlackElo "1272"]
[Annotator "NA"]
[PlyCount "61"]
[EventDate "2019.08.02"]
[EventType "swiss"]
[EventCountry "SVK"]
[SourceTitle "playchess.com"]
[Source "ChessBase"]
[SourceQuality "1"]
[TimeControl "40/5400+30:1800+30"]

1. e4 {[%emt 0:00:00]} e5 {[%emt 0:00:00]} 2. Nf3 {[%emt 0:00:00]} Nc6 {[%emt 0:00:00]} 3. Bb5 {[%emt 0:00:00]} Bc5 {[%emt 0:00:55]} 4. O-O {[%emt 0:00:05]} d6 {[%emt 0:00:16]} 5. c3 {[%emt 0:00:52]} Bg4 {[%emt 0:00:39]} 6. Bxc6+ {[%emt 0:01:51]} bxc6 {[%emt 0:00:46]} 7. h3 {[%emt 0:00:13]} Bh5 {[%emt 0:00:48]} 8. d3 {[%emt 0:01:11]} Ne7 {[%emt 0:00:33]} 9. Be3 {[%emt 0:00:16]} Bb6 {[%emt 0:01:55]} 10. Nbd2 {[%emt 0:01:55]} O-O {[%emt 0:02:29]} 11. d4 {[%emt 0:01:29]} f5 {[%emt 0:03:04]} 12. dxe5 {[%emt 0:08:22]} fxe4 {[%emt 0:05:46]} 13. Qb3+ {[%emt 0:06:13]} Kh8 {[%emt 0:02:38]} 14. Ng5 {[%emt 0:02:04]} Bxe3 {[%emt 0:03:28]} 15. fxe3 {[%emt 0:02:23]} Rxf1+ 16. Rxf1 {[%emt 0:00:15]} dxe5 {[%emt 0:04:05]} 17. Ndxe4 {[%emt 0:04:12]} Nd5 {[%emt 0:03:14]} 18. c4 {[%emt 0:02:03]} Nb6 {[%emt 0:02:48]} 19. Qc2 {[%emt 0:03:50]} Qe7 {[%emt 0:05:20]} 20. Qf2 {[%emt 0:12:44]} Nxc4 {[%emt 0:05:43]} 21. Qh4 {[%emt 0:04:18]} Qe8 {[%emt 0:02:19]} 22. Ng3 {[%emt 0:06:59]} Nd2 {[%emt 0:02:51]} 23. Rf2 {[%emt 0:05:41]} h6 {[%emt 0:08:07]} 24. Rxd2 {[%emt 0:01:30]} g6 {[%emt 0:05:30]} 25. N5e4 {[%emt 0:01:05]} Rb8 {[%emt 0:03:04]} 26. Qf6+ {[%emt 0:00:42]} Kh7 {[%emt 0:01:12]} 27. Nxh5 {[%emt 0:00:25]} gxh5 {[%emt 0:00:26]} 28. Qf5+ {[%emt 0:00:10]} Kh8 {[%emt 0:01:04]} 29. Nf6 {[%emt 0:00:39]} Qf7 {[%emt 0:06:46]} 30. Rd7 {[%emt 0:00:15]} Qf8 {[%emt 0:02:05]} 31. Qh7# {[%emt 0:00:15]} 1-0

[Event "EYCC Girls-U10 2019"]
[Site "Bratislava"]
[Date "2019.08.03"]
[Round "2.5"]
[White "Horvathova, Hana"]
[Black "Sidorenja, Milena"]
[Result "1-0"]
[ECO "B30"]
[WhiteElo "1271"]
[BlackElo "1573"]
[Annotator "NA"]
[PlyCount "83"]
[EventDate "2019.08.02"]
[EventType "swiss"]
[EventCountry "SVK"]
[SourceTitle "playchess.com"]
[Source "ChessBase"]
[SourceQuality "1"]
[TimeControl "40/5400+30:1800+30"]

1. e4 c5 2. Nf3 Nc6 3. c3 Nf6 4. d3 e5 5. Bg5 Be7 6. Nbd2 d6 7. Nc4 O-O 8. Be2 b5 9. Ne3 h6 10. Bh4 Nh7 11. Bxe7 Qxe7 12. O-O a6 13. a3 Nf6 14. Nd2 Be6 15. Bg4 Nxg4 16. Nxg4 Qg5 17. Ne3 Ne7 18. Qf3 f5 19. Qg3 Qh5 20. Qf3 Qg6 21. exf5 Nxf5 22. Nxf5 Bxf5 23. Ne4 c4 24. Rfe1 Rae8 25. dxc4 bxc4 26. Ng3 e4 27. Qh5 Qe6 28. Nxf5 Rxf5 29. Qg4 Qe5 30. Re3 Ref8 31. Qxe4 Qc5 32. Rf3 Rxf3 33. gxf3 Rf5 34. Rd1 Rg5+ 35. Kf1 Re5 36. Qd4 Qc8 37. Qg4 Qxg4 38. fxg4 d5 39. Re1 Rg5 40. h3 Rg6 41. Re5 Rd6 42. Ke2 1-0

[Event "EYCC Girls-U10 2019"]
[Site "Bratislava"]
[Date "2019.08.03"]
[Round "2.6"]
[White "Kirtadze, Anastasia"]
[Black "Zadrapova, Amalie"]
[Result "1-0"]
[ECO "D30"]
[WhiteElo "1532"]
[BlackElo "1248"]
[Annotator "NA"]
[PlyCount "79"]
[EventDate "2019.08.02"]
[EventType "swiss"]
[EventCountry "SVK"]
[SourceTitle "playchess.com"]
[Source "ChessBase"]
[SourceQuality "1"]
[TimeControl "40/5400+30:1800+30"]

1. d4 {[%emt 0:00:00]} d5 {[%emt 0:00:00]} 2. c4 {[%emt 0:00:00]} e6 {[%emt 0:00:00]} 3. Nf3 {[%emt 0:00:00]} Nf6 {[%emt 0:00:18]} 4. g3 {[%emt 0:00:06]} a6 {[%emt 0:01:11]} 5. Bg2 {[%emt 0:00:09]} dxc4 {[%emt 0:01:04]} 6. Ne5 {[%emt 0:00:14]} Nbd7 {[%emt 0:03:34]} 7. Nxc4 {[%emt 0:00:23]} Rb8 {[%emt 0:02:25]} 8. O-O {[%emt 0:02:38]} b5 {[%emt 0:00:28]} 9. Na5 {[%emt 0:00:11]} Rb6 {[%emt 0:16:21]} 10. Nc6 {[%emt 0:00:10]} Rxc6 {[%emt 0:00:06]} 11. Bxc6 {[%emt 0:00:07]} Be7 {[%emt 0:00:55]} 12. Nc3 {[%emt 0:00:57]} O-O {[%emt 0:00:29]} 13. Bg5 {[%emt 0:00:47]} Nb6 {[%emt 0:01:38]} 14. Ne4 {[%emt 0:04:24]} Nxe4 {[%emt 0:02:07]} 15. Bxe7 {[%emt 0:00:12]} Qxe7 {[%emt 0:00:07]} 16. Bxe4 {[%emt 0:00:10]} Rd8 {[%emt 0:03:16]} 17. Qc2 {[%emt 0:08:22]} f5 {[%emt 0:02:56]} 18. Bg2 {[%emt 0:00:12]} Rxd4 {[%emt 0:01:57]} 19. Rfd1 {[%emt 0:00:12]} Rc4 {[%emt 0:03:25]} 20. Qd3 {[%emt 0:00:10]} Kf7 {[%emt 0:05:02]} 21. b3 {[%emt 0:00:34]} Rb4 {[%emt 0:04:04]} 22. a3 {[%emt 0:00:21]} Rg4 {[%emt 0:00:46]} 23. Bf3 {[%emt 0:00:11]} Rg6 {[%emt 0:04:08]} 24. Bh5 {[%emt 0:00:28]} Bb7 {[%emt 0:01:47]} 25. Bxg6+ {[%emt 0:00:20]} Kxg6 {[%emt 0:00:31]} 26. Qd8 {[%emt 0:00:39]} Qf7 {[%emt 0:03:59]} 27. Rac1 {[%emt 0:01:24]} Nd5 {[%emt 0:01:10]} 28. Rxd5 {[%emt 0:01:00]} Bxd5 {[%emt 0:01:31]} 29. Rxc7 {[%emt 0:00:06]} Qf6 {[%emt 0:00:38]} 30. Qxf6+ {[%emt 0:00:12]} Kxf6 {[%emt 0:00:13]} 31. b4 {[%emt 0:00:06]} Bc4 {[%emt 0:01:02]} 32. e3 {[%emt 0:00:14]} h6 {[%emt 0:01:06]} 33. f4 {[%emt 0:00:10]} g5 {[%emt 0:00:40]} 34. Kf2 {[%emt 0:00:24]} h5 {[%emt 0:01:23]} 35. Ke1 {[%emt 0:00:25]} Kg6 {[%emt 0:00:22]} 36. h4 {[%emt 0:00:40]} g4 {[%emt 0:00:46]} 37. Rc6 {[%emt 0:00:25]} Kf7 {[%emt 0:00:53]} 38. Rxa6 {[%emt 0:00:18]} Ke7 {[%emt 0:00:26]} 39. Ra7+ {[%emt 0:00:08]} Kf6 {[%emt 0:01:39]} 40. Kd2 {[%emt 0:00:00]} 1-0

[Event "EYCC Girls-U10 2019"]
[Site "Bratislava"]
[Date "2019.08.03"]
[Round "2.7"]
[White "Bagas, Ana"]
[Black "Shatil, Or"]
[Result "1-0"]
[ECO "B23"]
[WhiteElo "1442"]
[BlackElo "1185"]
[Annotator "NA"]
[PlyCount "97"]
[EventDate "2019.08.02"]
[EventType "swiss"]
[EventCountry "SVK"]
[SourceTitle "playchess.com"]
[Source "ChessBase"]
[SourceQuality "1"]
[TimeControl "40/5400+30:1800+30"]

1. e4 c5 2. Nc3 g6 3. g3 Bg7 4. Bg2 Nc6 5. d3 e6 6. Be3 b6 7. Nge2 Nge7 8. Qd2 d5 9. Bh6 O-O 10. h4 d4 11. Nd1 Bb7 12. h5 Ne5 13. hxg6 fxg6 14. Bxg7 Kxg7 15. Qh6+ Kf7 16. Qf4+ Ke8 17. Qxe5 Qd7 18. Bh3 Nf5 19. g4 Nh4 20. Qg3 Nf3+ 21. Kf1 Qf7 22. Bg2 Ng5 23. c3 dxc3 24. Nexc3 Ba6 25. Qe3 Qe7 26. b3 Rd8 27. Nb2 Qg7 28. Rc1 Qf7 29. e5 Qe7 30. Kg1 Rd4 31. f3 Rdf4 32. Rf1 Bb7 33. Ne4 Bxe4 34. dxe4 Qf7 35. Nd3 Nxf3+ 36. Bxf3 Rxf3 37. Rxf3 Qxf3 38. Qxf3 Rxf3 39. Nf2 Rf7 40. Kg2 a5 41. Kg3 b5 42. Nh3 c4 43. bxc4 bxc4 44. Rc1 Rc7 45. Ng5 h6 46. Nxe6 Re7 47. Nf4 g5 48. Nd5 Rxe5 49. Rxc4 1-0

[Event "EYCC Girls-U10 2019"]
[Site "Bratislava"]
[Date "2019.08.03"]
[Round "2.8"]
[White "Bendik, Margarita"]
[Black "Kusakina, Uliana"]
[Result "0-1"]
[ECO "C60"]
[WhiteElo "1188"]
[BlackElo "1364"]
[Annotator "NA"]
[PlyCount "52"]
[EventDate "2019.08.02"]
[EventType "swiss"]
[EventCountry "SVK"]
[SourceTitle "playchess.com"]
[Source "ChessBase"]
[SourceQuality "1"]
[TimeControl "40/5400+30:1800+30"]

1. e4 e5 2. Nf3 Nc6 3. Bb5 g6 4. Bxc6 dxc6 5. O-O Bg7 6. d3 Be6 7. Ng5 Qd7 8. Be3 h6 9. Nxe6 Qxe6 10. Nd2 Ne7 11. Nb3 b6 12. Qe2 c5 13. a4 O-O 14. Nd2 g5 15. Nb1 Ng6 16. g3 Qh3 17. Nc3 c6 18. a5 Nf4 19. gxf4 exf4 20. Bd2 f3 21. Qxf3 Qxf3 22. a6 f5 23. Rfe1 f4 24. Ne2 g4 25. Kf1 g3 26. Ra5 Qxf2# 0-1

[Event "EYCC Girls-U10 2019"]
[Site "Bratislava"]
[Date "2019.08.03"]
[Round "2.9"]
[White "Artissi, Sabina"]
[Black "Havaldova, Natalia"]
[Result "1-0"]
[ECO "A04"]
[WhiteElo "1419"]
[BlackElo "1160"]
[Annotator "NA"]
[PlyCount "43"]
[EventDate "2019.08.02"]
[EventType "swiss"]
[EventCountry "SVK"]
[SourceTitle "playchess.com"]
[Source "ChessBase"]
[SourceQuality "1"]
[TimeControl "40/5400+30:1800+30"]

1. Nf3 Nc6 2. d4 d5 3. c4 Nf6 4. Nc3 Bf5 5. Bf4 e6 6. e3 Bd6 7. Bg5 Bb4 8. Be2 O-O 9. O-O Kh8 10. Qb3 Bxc3 11. bxc3 b6 12. cxd5 Qxd5 13. Bxf6 Qxb3 14. Bxg7+ Kxg7 15. axb3 Kh8 16. b4 Rg8 17. Rfe1 Bh3 18. g3 Ne7 19. Bf1 Bg4 20. Bg2 Bxf3 21. Bxf3 c6 22. Ra3 1-0